fUSD/lending_fUSD_20240217
["ID","MTS","AMOUNT","RATE_DAILY","PERIOD"]
[314285952,1708156245814,-500.0,0.00046799,2]
[314285953,1708156245824,-4494.22300371,0.00048975,8]
[314285954,1708156245908,-1560.0,0.00048975,8]
[314285955,1708156245920,-2172.25771036,0.00048975,8]
[314285956,1708156245931,-666.41,0.00048975,8]
[314285957,1708156245956,-773.47083499,0.00048975,8]
[314285958,1708156245967,-2860.83600552,0.00048975,8]
[314285962,1708156246410,-150.01,0.00041996,2]
[314285963,1708156246420,-3317.68767406,0.00041996,2]
[314285964,1708156246430,-500.0,0.00046799,2]
[314285965,1708156246439,-500.0,0.00046799,2]
[314285966,1708156246448,-500.0,0.00046799,2]
[314285967,1708156246457,-500.0,0.00046799,2]
[314285968,1708156246465,-500.0,0.00046799,2]
[314285969,1708156246475,-500.0,0.00046799,2]
[314285970,1708156246483,-500.0,0.00046799,2]
[314285971,1708156246492,-192.0,0.000481,120]
[314285972,1708156246501,-46390.10837103,0.00048975,8]
[314285974,1708156270470,50000.0,0.00023,2]
[314285975,1708156270506,50000.0,0.00023,2]
[314285976,1708156270534,50000.0,0.00023,2]
[314285977,1708156270556,100000.0,0.00023,2]
[314285978,1708156270590,79380.5363902,0.00023,2]
[314285979,1708156270618,10000.0,0.00023,2]
[314285980,1708156270649,10000.0,0.00023,2]
[314285981,1708156350785,196.3269777,0.00023,3]
[314285982,1708156356695,-70030.0,0.00022789,2]
[314285983,1708156448684,190.47,0.0002,2]
[314285984,1708156448706,150.0,0.0002,2]
[314285985,1708156448729,150.0,0.0002,2]
[314285986,1708156448750,150.0,0.0002,2]
[314285987,1708156448770,150.0,0.0002,2]
[314285988,1708156448790,150.0,0.0002,2]
[314285989,1708156448811,150.0,0.0002,2]
[314285990,1708156448832,150.0,0.0002,2]
[314285991,1708156448857,150.0,0.0002,2]
[314285992,1708156448878,150.0,0.0002,2]
[314285993,1708156448899,150.0,0.0002,2]
[314285994,1708156448918,150.0,0.0002,2]
[314285995,1708156448939,150.0,0.0002,2]
[314285996,1708156448959,150.0,0.0002,2]
[314285997,1708156448979,150.0,0.0002,2]
[314285998,1708156449000,150.0,0.0002,2]
[314285999,1708156449023,150.0,0.0002,2]
[314286000,1708156449043,150.0,0.0002,2]
[314286001,1708156449064,150.0,0.0002,2]
[314286002,1708156449084,150.0,0.0002,2]
[314286003,1708156449105,150.0,0.0002,2]
[314286004,1708156449124,83.13197752,0.0002,2]
[314286005,1708156458151,156.40619022,0.0002,2]
[314286006,1708156462190,150.0,0.00018,2]
[314286007,1708156462213,150.0,0.00018,2]
[314286008,1708156462233,150.0,0.00018,2]
[314286009,1708156462254,20.29843405,0.00018,2]
[314286010,1708156464343,129.70156595,0.000137,2]
[314286011,1708156464365,150.0,0.000137,2]
[314286012,1708156464385,133.04761367,0.000137,2]
[314286013,1708156464864,16.95238633,0.00022,2]
[314286014,1708156464885,138.33226294,0.00022,2]
[314286015,1708156546239,78.53575954,0.00022429,2]
[314286016,1708156546261,11821.46424046,0.00022429,2]
[314286017,1708156549266,500.0,0.00022429,2]
[314286018,1708156556381,10247.4,0.00022338,2]
[314286019,1708156565296,150.0,0.00022,2]
[314286020,1708156566094,200.0,0.0002202,2]
[314286021,1708156575616,201.26830705,0.00021918,2]
[314286022,1708156575705,1852.42,0.00021987,2]
[314286023,1708156587760,10409.08,0.0002194,2]
[314286024,1708156588448,512.36,0.0002194,2]
[314286025,1708156588474,235.03,0.0002194,2]
[314286026,1708156590696,2037.73380303,0.00023,3]
[314286027,1708156597398,500.0,0.00021938,2]
[314286028,1708156599296,7126.64,0.00021961,2]
[314286029,1708156614545,8221.29,0.00021938,2]
[314286030,1708156616843,203.22520032,0.00022446,2]
[314286031,1708156618699,178.01,0.00016712,2]
[314286032,1708156625187,501.46,0.00021906,2]
[314286033,1708156637459,192.5,0.00021921,2]
[314286034,1708156648757,205.32,0.00021906,10]
[314286035,1708156648959,205.32,0.00024052,10]
[314286036,1708156664553,2705.0,0.00021921,2]
[314286037,1708156666166,150.0,0.00022,2]
[314286038,1708156671052,19244.88,0.00022076,2]
[314286039,1708156679253,177.43,0.00022,2]
[314286040,1708156687207,2000.0,0.0002198,2]
[314286041,1708156690558,299.99,0.00022768,7]
[314286042,1708156690794,2928.75,0.00022132,2]
[314286043,1708156695687,23554.5,0.00021956,2]
[314286044,1708156712334,200.0,0.00021956,2]
[314286045,1708156713359,1018.86690152,0.00023,3]
[314286046,1708156714757,679.55355031,0.000229,6]
[314286047,1708156718890,1954.77,0.00021971,2]
[314286048,1708156719702,679.55355028,0.00022908,6]
[314286049,1708156721006,503.19071072,0.00022,2]
[314286050,1708156724757,679.55355028,0.00022915,6]
[314286051,1708156729687,679.55355028,0.00022923,6]
[314286052,1708156731989,250.0,0.00021986,2]
[314286053,1708156734703,679.55355028,0.0002293,6]
[314286054,1708156756927,23900.0,0.00021866,2]
[314286055,1708156779096,1918.28,0.00021849,2]
[314286056,1708156782440,4123.23,0.00021853,2]
[314286057,1708156783070,731.35,0.00021853,2]
[314286058,1708156792187,750.0,0.00021856,2]
[314286059,1708156803016,251.93415778,0.00022,2]
[314286060,1708156803204,150.0,0.00021866,2]
[314286061,1708156803476,150.0,0.00021866,2]
[314286062,1708156803649,150.0,0.00021866,2]
[314286063,1708156804091,252.85764213,0.00021866,2]
[314286064,1708156806528,469.0,0.000274,7]
[314286065,1708156824638,480.0,0.0002184,2]
[314286066,1708156833815,509.43345076,0.00023,3]
[314286067,1708156851331,317.59402769,0.00022436,2]
[314286068,1708156875638,167.0,0.0002248,2]
[314286069,1708156877720,1547.55,0.00021826,2]
[314286070,1708156878396,150.0,0.00021826,2]
[314286071,1708156880198,200.43430633,0.00021918,2]
[314286072,1708156881374,2400.67,0.00021822,2]
[314286073,1708156894586,2981.61,0.00021997,2]
[314286074,1708156900657,1612.58,0.00019907,2]
[314286075,1708156901102,1612.58,0.0002217,2]
[314286076,1708156901409,1197.87,0.00021824,2]
[314286077,1708156901621,1197.87,0.00021939,2]
[314286078,1708156901826,1197.87,0.00022054,2]
[314286079,1708156902029,1197.87,0.00022169,2]
[314286080,1708156902426,1197.87,0.00022284,2]
[314286081,1708156902634,1197.87,0.00022399,2]
[314286082,1708156905801,250.0,0.00021918,2]
[314286083,1708156921959,250.45,0.00021777,2]
[314286084,1708156927892,5398.23,0.00021777,2]
[314286085,1708156943229,550.0,0.00025,3]
[314286086,1708156949524,691.84,0.00021777,2]
[314286087,1708156950808,254.71672538,0.00023,3]
[314286088,1708156953885,181.47,0.00022316,2]
[314286089,1708156959432,3085.05,0.00021768,2]
[314286090,1708156959588,500.0,0.00021768,2]
[314286091,1708156965496,213.08384221,0.0002251,2]
[314286093,1708156978693,9192.7,0.00021918,2]
[314286094,1708156978873,150.0,0.00022,2]
[314286095,1708156990410,150.0,0.00022,2]
[314286099,1708156997912,641.16197876,0.0002251,2]
[314286100,1708156998702,1403.8,0.00021918,2]
[314286101,1708157006247,2389.86,0.00021786,2]
[314286102,1708157017468,3457.17,0.00021786,2]
[314286103,1708157027870,11138.07,0.00021806,2]
[314286104,1708157036347,2816.13,0.00021787,2]
[314286105,1708157042560,500.0,0.00021787,2]
[314286106,1708157050562,650.7,0.00021787,2]
[314286107,1708157055906,200.0,0.00021796,2]
[314286108,1708157058806,1264.36,0.00021796,2]
[314286109,1708157065047,500.0,0.00021787,2]
[314286110,1708157069723,1852.42,0.00021787,2]
[314286111,1708157070712,254.71672537,0.00023,3]
[314286112,1708157075606,4180.74,0.00021787,2]
[314286113,1708157086298,5376.15366275,0.00021787,2]
[314286114,1708157091723,55654.64573358,0.000225,2]
[314286115,1708157091754,118345.35426642,0.000225,2]
[314286116,1708157094261,231.67,0.00021796,2]
[314286117,1708157102342,4480.12805229,0.00021787,2]
[314286118,1708157107025,7421.34,0.00021799,2]
[314286119,1708157109641,200.0,0.00021799,2]
[314286120,1708157116513,4606.12,0.00021806,2]
[314286121,1708157118801,2705.0,0.00021814,2]
[314286122,1708157120352,4480.12805229,0.00021787,2]
[314286123,1708157140305,2334.14671524,0.00021787,2]
[314286124,1708157149436,182.01,0.00021858,2]
[314286125,1708157162340,2334.14671524,0.00021787,2]
[314286126,1708157163134,168.8,0.00017471,2]
[314286127,1708157167691,2491.45,0.00021839,2]
[314286128,1708157180504,165.24,0.00021816,2]
[314286129,1708157184206,2000.0,0.00021799,2]
[314286130,1708157184330,200.0,0.00021918,2]
[314286131,1708157187211,2334.14671524,0.00021858,2]
[314286132,1708157187499,250.0,0.00021792,2]
[314286133,1708157189653,732.96,0.00021943,2]
[314286134,1708157189895,732.96,0.00022003,2]
[314286135,1708157190096,732.96,0.00022063,2]
[314286136,1708157190299,732.96,0.00022123,2]
[314286137,1708157190511,732.96,0.00022183,2]
[314286138,1708157190721,732.96,0.00022244,2]
[314286139,1708157190918,732.96,0.00022304,2]
[314286140,1708157191335,732.96,0.00022364,2]
[314286141,1708157191528,732.96,0.00022424,2]
[314286142,1708157191883,732.96,0.00022484,2]
[314286143,1708157203468,2334.14671524,0.00021858,2]
[314286144,1708157204551,23900.0,0.00021753,2]
[314286145,1708157206595,-155.0,0.00022511,2]
[314286146,1708157206614,-213.08384221,0.00022512,2]
[314286147,1708157206635,-1197.87,0.00022514,2]
[314286148,1708157206656,-732.96,0.00022545,2]
[314286149,1708157206675,-300.0,0.00022547,2]
[314286150,1708157206695,-150.0,0.00022547,2]
[314286151,1708157206715,-150.0,0.00022547,2]
[314286152,1708157206734,-177.43,0.00022548,2]
[314286153,1708157206753,-150.0,0.00022548,2]
[314286154,1708157206772,-222.0878001,0.00022548,2]
[314286155,1708157206791,-380.40097009,0.00022589,2]
[314286156,1708157206811,-732.96,0.00022605,2]
[314286157,1708157206831,-1197.87,0.00022629,2]
[314286158,1708157206851,-352.78,0.00022629,2]
[314286159,1708157206871,-380.40097006,0.00022639,2]
[314286160,1708157206891,-732.96,0.00022665,2]
[314286161,1708157206911,-518.0,0.00022688,2]
[314286162,1708157206929,-2256.19641754,0.00022688,2]
[314286163,1708157209454,1954.77,0.00021845,2]
[314286164,1708157211433,203.22520032,0.00022445,2]
[314286165,1708157220177,23554.5,0.00021843,2]
[314286166,1708157223199,2334.14671524,0.00021858,2]
[314286167,1708157225377,548.70901228,0.00021858,7]
[314286168,1708157236097,150.0,0.00022,2]
[314286169,1708157239902,200.0,0.0002184,2]
[314286170,1708157245369,548.70901228,0.00022445,7]
[314286171,1708157247200,2334.14671524,0.00022445,2]
[314286172,1708157250561,200.0,0.0002183,2]
[314286173,1708157250760,-150.0,0.00022548,2]
[314286174,1708157250779,-2616.95652504,0.000226,2]
[314286175,1708157250799,-17233.04347496,0.00022687,2]
[314286176,1708157259006,-40083.67058126,0.00022687,2]
[314286177,1708157259026,-9916.32941874,0.00022688,2]
[314286178,1708157259370,548.70901228,0.00022445,7]
[314286179,1708157262504,4123.23,0.00021857,2]
[314286180,1708157267509,-3699.34416372,0.00022688,2]
[314286181,1708157267528,-150.99,0.00022688,2]
[314286182,1708157267548,-3344.36204502,0.00022688,2]
[314286183,1708157267569,-7454.16,0.00022689,2]
[314286184,1708157267588,-18634.98,0.00022689,2]
[314286185,1708157267607,-16716.16379126,0.00022689,2]
[314286186,1708157274430,658.47656952,0.00022445,2]
[314286187,1708157274451,1675.67014572,0.00022445,2]
[314286188,1708157279327,-1962.03620874,0.00022689,2]
[314286189,1708157279348,-349.74,0.00022689,2]
[314286190,1708157279368,-1986.68,0.00022689,2]
[314286191,1708157279387,-311.89,0.00022689,2]
[314286192,1708157279407,-1537.88,0.00022689,2]
[314286193,1708157279427,-43851.77379126,0.00022689,2]
[314286194,1708157282940,2928.75,0.00022051,2]
[314286195,1708157285006,1277.47,0.00021876,2]
[314286196,1708157288009,-398.06331614,0.00022589,2]
[314286197,1708157288029,-398.06331607,0.00022605,2]
[314286198,1708157288049,-155.0,0.00022688,2]
[314286199,1708157288070,-3887.43920874,0.00022689,2]
[314286200,1708157288091,-557.01401333,0.00022689,2]
[314286201,1708157290656,548.70901228,0.00022689,7]
[314286202,1708157292530,616.0,0.00021866,2]
[314286203,1708157293059,750.0,0.00021866,2]
[314286204,1708157295602,-398.06331607,0.00022622,2]
[314286205,1708157295622,-2334.14671524,0.00022689,2]
[314286206,1708157295644,-7267.78996869,0.00022689,2]
[314286207,1708157303578,4130.86,0.0002187,2]
[314286208,1708157306650,548.70901228,0.00022689,7]
[314286209,1708157306918,-317.59402769,0.00022618,2]
[314286210,1708157306938,-398.06331607,0.00022638,2]
[314286211,1708157306971,-398.06331607,0.00022654,2]
[314286212,1708157306995,-25733.99881798,0.00022689,2]
[314286213,1708157307017,-23152.28052219,0.00022716,2]
[314286214,1708157310954,177.43,0.00022,2]
[314286215,1708157323338,-177.43,0.00022548,2]
[314286216,1708157323363,-398.06331607,0.00022671,2]
[314286217,1708157323388,-398.06331607,0.00022687,2]
[314286218,1708157323412,-2334.14671524,0.00022689,2]
[314286219,1708157323437,-398.06331607,0.00022704,2]
[314286220,1708157323461,-16294.23333655,0.00022716,2]
[314286221,1708157324660,548.70901228,0.00022689,7]
[314286222,1708157328576,2400.67,0.00021913,2]
[314286223,1708157329842,573.87,0.00021913,2]
[314286224,1708157340666,548.70901228,0.00022689,7]
[314286225,1708157346704,585.2,0.00021846,2]
[314286226,1708157352244,503.19071072,0.00022,2]
[314286227,1708157353875,-167.0,0.00022501,2]
[314286228,1708157353894,-833.0,0.00022689,2]
[314286229,1708157369503,366.97,0.00021805,2]
[314286230,1708157369733,366.97,0.0002192,2]
[314286231,1708157370158,366.97,0.00022035,2]
[314286232,1708157370387,366.97,0.00022149,2]
[314286233,1708157370599,366.97,0.00022264,2]
[314286234,1708157370785,366.97,0.00022379,2]
[314286235,1708157371180,366.97,0.00022494,2]
[314286236,1708157391869,11211.89900415,0.00020491,5]
[314286237,1708157403153,150.0,0.00022494,2]
[314286238,1708157403337,150.0,0.00022494,2]
[314286239,1708157403770,150.0,0.00022494,2]
[314286240,1708157403964,150.0,0.00022494,2]
[314286241,1708157404152,150.0,0.00022494,2]
[314286242,1708157404339,150.0,0.00022494,2]
[314286243,1708157404539,150.0,0.00022494,2]
[314286244,1708157404730,150.0,0.00022494,2]
[314286245,1708157404900,150.0,0.00022494,2]
[314286246,1708157405303,150.0,0.00022494,2]
[314286247,1708157405357,150.0,0.00022494,2]
[314286248,1708157405434,150.0,0.00022494,2]
[314286249,1708157405617,150.0,0.00022494,2]
[314286250,1708157405782,150.0,0.00022494,2]
[314286251,1708157405966,150.0,0.00022494,2]
[314286252,1708157406123,2334.14671524,0.00022494,2]
[314286253,1708157406167,150.0,0.00022494,2]
[314286254,1708157406326,150.0,0.00022494,2]
[314286255,1708157406514,150.0,0.00022494,2]
[314286256,1708157406687,150.0,0.00022494,2]
[314286257,1708157406876,150.0,0.00022494,2]
[314286258,1708157407037,150.0,0.00022494,2]
[314286259,1708157407199,150.0,0.00022494,2]
[314286260,1708157407361,150.0,0.00022494,2]
[314286261,1708157407572,150.0,0.00022494,2]
[314286262,1708157408003,150.0,0.00022494,2]
[314286263,1708157408188,150.0,0.00022494,2]
[314286264,1708157408356,150.0,0.00022494,2]
[314286265,1708157408747,150.0,0.00022494,2]
[314286266,1708157408807,150.0,0.00022494,2]
[314286267,1708157408937,150.0,0.00022494,2]
[314286268,1708157409094,150.0,0.00022494,2]
[314286269,1708157409261,150.0,0.00022494,2]
[314286270,1708157409441,150.0,0.00022494,2]
[314286271,1708157409638,150.0,0.00022494,2]
[314286272,1708157409823,150.0,0.00022494,2]
[314286273,1708157410020,150.0,0.00022494,2]
[314286274,1708157410214,227.02180214,0.00022494,2]
[314286275,1708157415179,20349.3136,0.000225,2]
[314286276,1708157416728,500.0,0.00021806,2]
[314286277,1708157418123,2334.14671524,0.00022494,2]
[314286278,1708157424885,3248.42,0.00021809,2]
[314286279,1708157426387,691.84,0.00021809,2]
[314286280,1708157429184,405.45,0.00021811,2]
[314286289,1708157431545,-1592.29409451,0.00022542,2]
[314286290,1708157431560,-922.51310437,0.00022542,2]
[314286291,1708157431603,-397.38733447,0.00022542,2]
[314286292,1708157431660,-10672.61438512,0.00022542,2]
[314286293,1708157431673,-20391.37557804,0.00022542,2]
[314286294,1708157431686,-102589.72067615,0.00022542,2]
[314286295,1708157431699,-36083.16804754,0.00022542,2]
[314286296,1708157431766,-521.97670531,0.00022542,2]
[314286297,1708157431778,-53208.95007449,0.00022542,2]
[314286298,1708157431788,-366.97,0.00022608,2]
[314286299,1708157431798,-155.0,0.00022688,2]
[314286300,1708157431807,-2926.31678934,0.00022689,2]
[314286301,1708157431817,-300.0,0.00022715,2]
[314286302,1708157431826,-150.0,0.00022715,2]
[314286303,1708157431835,-300.0,0.00022715,2]
[314286304,1708157431845,-32468.78786127,0.00022716,2]
[314286305,1708157431856,-2000.0,0.00022716,2]
[314286306,1708157431867,-200.0,0.00022716,2]
[314286307,1708157431876,-2926.31678934,0.00022719,2]
[314286308,1708157431886,-398.06331607,0.0002272,2]
[314286309,1708157431896,-366.97,0.00022723,2]
[314286310,1708157431905,-732.96,0.00022725,2]
[314286311,1708157431914,-499.99,0.00022726,2]
[314286312,1708157431928,-398.06331607,0.00022736,2]
[314286313,1708157431937,-9542.62,0.0002274,2]
[314286314,1708157431947,-1197.87,0.00022743,2]
[314286315,1708157431956,-150.99,0.00022744,2]
[314286316,1708157431965,-2926.31678934,0.00022749,2]
[314286317,1708157431977,-398.06331607,0.00022753,2]
[314286318,1708157431986,-1855.56,0.00022759,2]
[314286319,1708157431996,-272.49491905,0.00022768,2]
[314286320,1708157432006,-189.4827143,0.00022768,2]
[314286321,1708157432015,-155.0,0.00022768,2]
[314286322,1708157432025,-398.06331607,0.00022769,2]
[314286323,1708157432034,-2926.31678934,0.00022779,2]
[314286324,1708157432043,-732.96,0.00022785,2]
[314286325,1708157432053,-398.06331607,0.00022785,2]
[314286326,1708157432062,-47499.34958098,0.00022789,2]
[314286327,1708157432072,-515.28146836,0.00022789,2]
[314286328,1708157432081,-9999.99,0.00022789,2]
[314286329,1708157432091,-586.08,0.00022789,2]
[314286330,1708157432100,-398.06331607,0.00022802,2]
[314286331,1708157432110,-2926.31678934,0.0002281,2]
[314286332,1708157432119,-398.06331607,0.00022818,2]
[314286333,1708157432128,-1256.58049079,0.00022821,2]
[314286334,1708157432138,-398.06331607,0.00022835,2]
[314286335,1708157432147,-366.97,0.00022838,2]
[314286336,1708157432157,-2926.31678934,0.0002284,2]
[314286337,1708157432166,-732.96,0.00022846,2]
[314286338,1708157432175,-398.06331607,0.00022851,2]
[314286339,1708157432185,-1197.87,0.00022858,2]
[314286340,1708157432194,-398.06331607,0.00022867,2]
[314286341,1708157432204,-2926.31678934,0.0002287,2]
[314286342,1708157432218,-398.06331607,0.00022884,2]
[314286343,1708157432228,-496.34790707,0.0002289,2]
[314286344,1708157432237,-155.04506949,0.00022898,2]
[314286345,1708157432246,-1067.34537483,0.00022898,2]
[314286346,1708157432256,-219.90621448,0.00022899,2]
[314286347,1708157432266,-219.90621448,0.000229,2]
[314286348,1708157432276,-8367.70361335,0.000229,2]
[314286349,1708157432285,-5696.33,0.000229,2]
[314286350,1708157432294,-196.52849666,0.000229,2]
[314286351,1708157432303,-81048.10753832,0.000229,2]
[314286352,1708157434116,2334.14671524,0.00022494,2]
[314286357,1708157437478,-155.0,0.00022541,2]
[314286358,1708157437487,-181.47,0.00022695,2]
[314286359,1708157437496,-1147.63828739,0.000229,2]
[314286360,1708157437645,-4862.59369356,0.000229,2]
[314286361,1708157437657,-745.86173646,0.000229,2]
[314286362,1708157437668,-741.27723955,0.000229,2]
[314286363,1708157437681,-420.8888349,0.000229,2]
[314286364,1708157437692,-313.89851893,0.000229,2]
[314286365,1708157437712,-464.04415089,0.000229,2]
[314286366,1708157437722,-126287.54183693,0.000229,2]
[314286367,1708157437732,-219.90621448,0.000229,2]
[314286368,1708157437741,-398.06331607,0.000229,2]
[314286369,1708157437750,-286.23368858,0.000229,2]
[314286370,1708157437759,-12866.74644524,0.000229,2]
[314286371,1708157437768,-2926.31678934,0.000229,2]
[314286372,1708157437777,-2243.71554684,0.000229,2]
[314286373,1708157437786,-2842.96252996,0.000229,2]
[314286374,1708157437795,-1893.1888211,0.000229,2]
[314286375,1708157437805,-10781.71396827,0.000229,2]
[314286376,1708157437814,-732.96,0.00022906,2]
[314286377,1708157437823,-286.23368856,0.00022913,2]
[314286387,1708157437999,-12866.74644524,0.00022913,2]
[314286389,1708157438008,-2842.96252994,0.00022913,2]
[314286391,1708157438017,-1893.18882108,0.00022913,2]
[314286393,1708157438026,-1547.55,0.00022917,2]
[314286395,1708157438035,-3009.38465156,0.00022926,2]
[314286397,1708157438044,-286.23368856,0.00022926,2]
[314286399,1708157438053,-12866.74644524,0.00022926,2]
[314286401,1708157438062,-260.82545379,0.00022926,2]
[314286403,1708157438071,-2842.96252994,0.00022926,2]
[314286405,1708157438080,-1893.18882108,0.00022926,2]
[314286407,1708157438089,-585.2,0.00022938,2]
[314286409,1708157438098,-2000.0,0.00022943,2]
[314286411,1708157438107,-200.0,0.00022943,2]
[314286413,1708157438117,-366.97,0.00022953,2]
[314286415,1708157438126,-800.0,0.00022959,2]
[314286417,1708157438135,-800.0,0.00022959,2]
[314286419,1708157438144,-509.89,0.00022959,2]
[314286421,1708157438153,-732.96,0.00022966,2]
[314286423,1708157438162,-1197.87,0.00022973,2]
[314286425,1708157438172,-496.34790707,0.0002299,2]
[314286427,1708157438181,-496.34790707,0.0002299,2]
[314286429,1708157438190,-200.0,0.00022999,2]
[314286431,1708157438199,-344.0,0.00022999,2]
[314286433,1708157438208,-197.11653375,0.00022999,2]
[314286435,1708157438218,-500.0,0.00022999,2]
[314286437,1708157438227,-208.79475264,0.00022999,2]
[314286439,1708157438237,-258.46685872,0.00022999,2]
[314286441,1708157438246,-500.0,0.00022999,2]
[314286443,1708157438256,-568.63667312,0.00022999,2]
[314286445,1708157438268,-618.3142877,0.00022999,2]
[314286447,1708157438277,-500.0,0.00022999,2]
[314286449,1708157438287,-618.3142877,0.00022999,2]
[314286451,1708157438297,-500.0,0.00022999,2]
[314286453,1708157438306,-618.3142877,0.00022999,2]
[314286455,1708157438315,-500.0,0.00022999,2]
[314286457,1708157438324,-618.3142877,0.00022999,2]
[314286459,1708157438333,-500.0,0.00022999,2]
[314286461,1708157438343,-618.3142877,0.00022999,2]
[314286463,1708157438353,-500.0,0.00022999,2]
[314286465,1708157438363,-618.3142877,0.00022999,2]
[314286467,1708157438372,-618.3142877,0.00022999,2]
[314286470,1708157438381,-500.0,0.00022999,2]
[314286472,1708157438391,-618.3142877,0.00022999,2]
[314286474,1708157438400,-618.3142877,0.00022999,2]
[314286476,1708157438409,-500.0,0.00022999,2]
[314286477,1708157438418,-618.3142877,0.00022999,2]
[314286479,1708157438427,-222.25356953,0.00022999,2]
[314286481,1708157438436,-618.3142877,0.00022999,2]
[314286483,1708157438447,-618.3142877,0.00022999,2]
[314286485,1708157438457,-500.0,0.00022999,2]
[314286487,1708157438466,-618.3142877,0.00022999,2]
[314286489,1708157438475,-618.3142877,0.00022999,2]
[314286491,1708157438485,-500.0,0.00022999,2]
[314286493,1708157438494,-618.3142877,0.00022999,2]
[314286495,1708157438503,-618.3142877,0.00022999,2]
[314286497,1708157438512,-618.3142877,0.00022999,2]
[314286498,1708157438521,-618.3142877,0.00022999,2]
[314286499,1708157438530,-618.3142877,0.00022999,2]
[314286500,1708157438539,-618.3142877,0.00022999,2]
[314286501,1708157438548,-618.3142877,0.00022999,2]
[314286502,1708157438557,-618.3142877,0.00022999,2]
[314286503,1708157438566,-618.3142877,0.00022999,2]
[314286504,1708157438575,-618.3142877,0.00022999,2]
[314286505,1708157438584,-618.3142877,0.00022999,2]
[314286506,1708157438593,-618.3142877,0.00022999,2]
[314286507,1708157438602,-618.3142877,0.00022999,2]
[314286508,1708157438611,-618.3142877,0.00022999,2]
[314286509,1708157438621,-618.3142877,0.00022999,2]
[314286510,1708157438630,-618.3142877,0.00022999,2]
[314286511,1708157438639,-618.3142877,0.00022999,2]
[314286512,1708157438648,-618.3142877,0.00022999,2]
[314286513,1708157438657,-618.3142877,0.00022999,2]
[314286514,1708157438666,-618.3142877,0.00022999,2]
[314286515,1708157438674,-618.3142877,0.00022999,2]
[314286516,1708157438684,-500.0,0.00022999,2]
[314286517,1708157438693,-618.3142877,0.00022999,2]
[314286518,1708157438701,-618.3142877,0.00022999,2]
[314286519,1708157438710,-618.3142877,0.00022999,2]
[314286520,1708157438719,-618.3142877,0.00022999,2]
[314286521,1708157438728,-618.3142877,0.00022999,2]
[314286522,1708157438738,-618.3142877,0.00022999,2]
[314286523,1708157438747,-618.3142877,0.00022999,2]
[314286524,1708157438756,-618.3142877,0.00022999,2]
[314286525,1708157438765,-618.3142877,0.00022999,2]
[314286526,1708157438774,-618.3142877,0.00022999,2]
[314286527,1708157438783,-618.3142877,0.00022999,2]
[314286528,1708157438793,-618.3142877,0.00022999,2]
[314286529,1708157438802,-618.3142877,0.00022999,2]
[314286530,1708157438811,-618.3142877,0.00022999,2]
[314286531,1708157438820,-618.3142877,0.00022999,2]
[314286532,1708157438829,-618.3142877,0.00022999,2]
[314286533,1708157438838,-618.3142877,0.00022999,2]
[314286534,1708157438847,-618.3142877,0.00022999,2]
[314286535,1708157438856,-618.3142877,0.00022999,2]